fUST/lending_fUST_20250113
["ID","MTS","AMOUNT","RATE_DAILY","PERIOD"]
[348719325,1736748646614,-500.0,0.00019178,2]
[348719327,1736748646623,-500.0,0.00019178,2]
[348719329,1736748646633,-500.0,0.00019178,2]
[348719332,1736748646642,-500.0,0.00019178,2]
[348719334,1736748646651,-500.0,0.00019178,2]
[348719336,1736748646660,-786.36,0.00019178,2]
[348719338,1736748646671,-490.59118845,0.00019178,2]
[348719340,1736748646680,-500.0,0.00019178,2]
[348719342,1736748646689,-500.0,0.00019178,2]
[348719343,1736748646698,-500.0,0.00019178,2]
[348719346,1736748646708,-500.0,0.00019178,2]
[348719348,1736748646717,-500.0,0.00019178,2]
[348719350,1736748646727,-7706.54307736,0.00019178,2]
[348720495,1736749275709,1296.8,0.00015052,2]
[348720498,1736749719750,200.553737,0.00013973,2]
[348720525,1736749832133,-544.61088897,0.0001864,2]
[348720526,1736749832212,-1638.97718917,0.0001864,2]
[348720527,1736749832224,-1778.56564325,0.0001864,2]
[348720531,1736749837975,-380.93473712,0.0001864,2]
[348720532,1736749837986,-587.238,0.0001874,2]
[348720533,1736749837996,-150.0,0.000189,2]
[348720534,1736749838005,-313.18781855,0.00019,2]
[348720535,1736749838015,-168.63962251,0.00019078,2]
[348720536,1736749838025,-300.0,0.00019177,2]
[348720537,1736749838035,-500.0,0.00019178,2]
[348720538,1736749838045,-500.0,0.00019178,2]
[348720539,1736749838054,-500.0,0.00019178,2]
[348720540,1736749838064,-500.0,0.00019178,2]
[348720541,1736749838073,-502.21861927,0.00019178,2]
[348720542,1736749838083,-502.29032971,0.00019178,2]
[348720543,1736749838092,-500.0,0.00019178,2]
[348720544,1736749838101,-500.0,0.00019178,2]
[348720545,1736749838115,-2098.97,0.00019178,2]
[348720546,1736749838128,-616.11762562,0.00019178,2]
[348720547,1736749838141,-387.49280316,0.00019178,2]
[348720589,1736749840339,-112.50719684,0.00019178,2]
[348720591,1736749840353,-540.45070302,0.00019178,2]
[348720594,1736749840364,-500.0,0.00019178,2]
[348720596,1736749840375,-500.0,0.00019178,2]
[348720598,1736749840387,-4321.28,0.00019178,2]
[348720600,1736749840399,-500.0,0.00019178,2]
[348720603,1736749840411,-500.0,0.00019178,2]
[348720605,1736749840423,-1324.39,0.00019178,2]
[348720607,1736749840434,-500.0,0.00019178,2]
[348720610,1736749840445,-500.0,0.00019178,2]
[348720612,1736749840457,-500.0,0.00019178,2]
[348720614,1736749840470,-500.0,0.00019178,2]
[348720617,1736749840482,-500.0,0.00019178,2]
[348720619,1736749840492,-500.0,0.00019178,2]
[348720621,1736749840504,-486.99668199,0.00019178,2]
[348720624,1736749840515,-500.0,0.00019178,2]
[348720626,1736749840525,-753.77,0.00019178,2]
[348720628,1736749840537,-527.6785101,0.00019178,2]
[348720630,1736749840549,-1992.59,0.00019178,2]
[348720633,1736749840561,-753.6,0.00019178,2]
[348720635,1736749840572,-1538.65,0.00019178,2]
[348720637,1736749840583,-500.0,0.00019178,2]
[348720640,1736749840594,-500.0,0.00019178,2]
[348720642,1736749840604,-500.0,0.00019178,2]
[348720644,1736749840615,-11675.47,0.00019178,2]
[348720646,1736749840624,-978.62,0.00019178,2]
[348720647,1736749840636,-500.0,0.00019178,2]
[348720648,1736749840646,-500.0,0.00019178,2]
[348720650,1736749840657,-202.74181808,0.00019178,7]
[348720651,1736749840669,-500.0,0.00019178,2]
[348720654,1736749840681,-500.0,0.00019178,2]
[348720655,1736749840692,-674.3,0.00019178,2]
[348720656,1736749840703,-500.0,0.00019178,2]
[348720657,1736749840714,-500.0,0.00019178,2]
[348720658,1736749840727,-500.0,0.00019178,2]
[348720659,1736749840739,-1145.24,0.00019178,2]
[348720660,1736749840750,-500.0,0.00019178,2]
[348720661,1736749840761,-3249.17,0.00019178,2]
[348720662,1736749840774,-500.0,0.00019178,2]
[348720663,1736749840785,-500.0,0.00019178,2]
[348720664,1736749840797,-500.0,0.00019178,2]
[348720665,1736749840807,-500.0,0.00019178,2]
[348720666,1736749840816,-500.0,0.00019178,2]
[348720667,1736749840826,-169.764469,0.00019178,2]
[348720668,1736749840837,-154.37,0.00019178,2]
[348720669,1736749840848,-153.0,0.000192,2]
[348720670,1736749840859,-153.0,0.000192,2]
[348720671,1736749840872,-321.9109041,0.000192,2]
[348720672,1736749840884,-151.0,0.00019342,2]
[348720673,1736749840896,-151.0,0.00019342,2]
[348720674,1736749840906,-186.637236,0.00019342,2]
[348720675,1736749840916,-173.04502068,0.00019352,2]
[348720676,1736749840929,-151.0,0.00019397,2]
[348720677,1736749840940,-828.814526,0.00019397,2]
[348720678,1736749840950,-699.50293419,0.00019397,2]
[348720706,1736749842954,-500.0,0.00019178,2]
[348720707,1736749842964,-129.31159181,0.00019397,2]
[348720708,1736749842975,-151.0,0.00019397,2]
[348720709,1736749842986,-151.0,0.00019397,2]
[348720710,1736749842997,-151.0,0.00019397,2]
[348720711,1736749843008,-151.0,0.00019397,2]
[348720712,1736749843019,-381.68688206,0.00019406,2]
[348720713,1736749843033,-118.31311794,0.00019406,2]
[348720714,1736749843044,-500.0,0.00019406,2]
[348720715,1736749843054,-188.60217513,0.00019406,2]
[348720769,1736750662542,190.52605,0.00013973,2]
[348720946,1736751035693,-322.50683943,0.00018071,2]
[348720948,1736751035726,-3680.28380036,0.00018071,2]
[348720949,1736751035736,-2286.94174928,0.00018171,2]
[348720950,1736751035765,-449.89980621,0.00018171,2]
[348720984,1736751038129,-2864.26444742,0.00018171,2]
[348720986,1736751038140,-160.4660919,0.00018271,2]
[348720988,1736751038149,-606.317,0.0001874,2]
[348720990,1736751038160,-152.77754161,0.000189,2]
[348720992,1736751038169,-302.78807257,0.00019,2]
[348720994,1736751038179,-10839.20815931,0.00019001,2]
[348720996,1736751038189,-166.20896788,0.00019078,2]
[348720998,1736751038199,-91.65722003,0.00019177,2]
[348721001,1736751038211,-408.34277997,0.00019177,2]
[348721003,1736751038221,-215.42731985,0.00019177,2]
[348721005,1736751038231,-330.30989958,0.00019177,2]
[348721007,1736751038248,-169.69010042,0.00019177,2]
[348721010,1736751038258,-500.0,0.00019177,2]
[348721012,1736751038271,-500.0,0.00019177,2]
[348721014,1736751038281,-500.0,0.00019177,2]
[348721016,1736751038291,-500.0,0.00019177,2]
[348721018,1736751038301,-175.55004752,0.00019177,2]
[348721020,1736751038311,-479.4911103,0.00019177,2]
[348721022,1736751038321,-500.0,0.00019177,2]
[348721024,1736751038331,-500.0,0.00019177,2]
[348721026,1736751038341,-500.0,0.00019177,2]
[348721028,1736751038352,-500.0,0.00019177,2]
[348721030,1736751038363,-500.0,0.00019177,2]
[348721032,1736751038373,-500.0,0.00019177,2]
[348721034,1736751038383,-500.0,0.00019177,2]
[348721036,1736751038395,-500.0,0.00019177,2]
[348721038,1736751038405,-500.0,0.00019177,2]
[348721041,1736751038415,-275.49901225,0.00019177,2]
[348721044,1736751038426,-228.616603,0.00019178,5]
[348721047,1736751038436,-5016.39196228,0.00019178,5]
[348721050,1736751038447,-3229.71,0.00019178,2]
[348721053,1736751038457,-1474.54,0.00019178,2]
[348721056,1736751038469,-500.0,0.00019178,2]
[348721058,1736751038482,-500.0,0.00019178,2]
[348721060,1736751038492,-500.0,0.00019178,2]
[348721062,1736751038502,-500.0,0.00019178,2]
[348721064,1736751038515,-500.0,0.00019178,2]
[348721066,1736751038525,-500.0,0.00019178,2]
[348721068,1736751038535,-500.0,0.00019178,2]
[348721070,1736751038544,-500.0,0.00019178,2]
[348721072,1736751038557,-500.0,0.00019178,2]
[348721074,1736751038569,-495.56408852,0.00019178,2]
[348721076,1736751038578,-500.0,0.00019178,2]
[348721079,1736751038588,-503.57370516,0.00019178,2]
[348721081,1736751038597,-500.0,0.00019178,2]
[348721083,1736751038607,-4329.11,0.00019178,2]
[348721085,1736751038616,-530.4008367,0.00019178,2]
[348721087,1736751038626,-500.0,0.00019178,2]
[348721089,1736751038635,-399.12622594,0.00019178,2]
[348721090,1736751038644,-1437.13,0.00019178,2]
[348721093,1736751038653,-500.0,0.00019178,2]
[348721094,1736751038662,-500.0,0.00019178,2]
[348721102,1736751038769,-500.0,0.00019178,2]
[348721103,1736751038778,-500.0,0.00019178,2]
[348721104,1736751038787,-500.0,0.00019178,2]
[348721105,1736751038796,-500.0,0.00019178,2]
[348721106,1736751038805,-500.0,0.00019178,2]
[348721107,1736751038814,-500.0,0.00019178,2]
[348721108,1736751038823,-500.0,0.00019178,2]
[348721109,1736751038832,-500.0,0.00019178,2]
[348721110,1736751038842,-500.0,0.00019178,2]
[348721111,1736751038851,-500.0,0.00019178,2]
[348721112,1736751038860,-500.0,0.00019178,2]
[348721113,1736751038870,-826.73,0.00019178,2]
[348721114,1736751038879,-500.0,0.00019178,2]
[348721115,1736751038888,-500.0,0.00019178,2]
[348721116,1736751038897,-825.67,0.00019178,2]
[348721117,1736751038906,-500.0,0.00019178,2]
[348721118,1736751038916,-500.0,0.00019178,2]
[348721119,1736751038925,-500.0,0.00019178,2]
[348721121,1736751038934,-456.81631186,0.00019178,2]
[348721122,1736751038944,-490.59118845,0.00019178,2]
[348721124,1736751038953,-500.0,0.00019178,2]
[348721126,1736751038962,-500.0,0.00019178,2]
[348721128,1736751038972,-500.0,0.00019178,2]
[348721130,1736751038981,-500.0,0.00019178,2]
[348721132,1736751038990,-500.0,0.00019178,2]
[348721134,1736751038999,-1013.37,0.00019178,2]
[348721136,1736751039008,-500.0,0.00019178,2]
[348721138,1736751039019,-500.0,0.00019178,2]
[348721140,1736751039028,-152.66664768,0.00019178,2]
[348721142,1736751039038,-500.0,0.00019178,2]
[348721144,1736751039047,-500.0,0.00019178,2]
[348721146,1736751039056,-13870.2,0.00019178,2]
[348721148,1736751039064,-500.0,0.00019178,2]
[348721150,1736751039073,-1000.0,0.00019178,7]
[348721152,1736751039083,-646.21,0.00019178,2]
[348721154,1736751039092,-500.0,0.00019178,2]
[348721156,1736751039101,-500.0,0.00019178,2]
[348721158,1736751039110,-1118.35,0.00019178,2]
[348721160,1736751039119,-500.0,0.00019178,2]
[348721163,1736751039129,-2011.51,0.00019178,2]
[348721165,1736751039138,-500.0,0.00019178,2]
[348721167,1736751039147,-2254.57,0.00019178,2]
[348721169,1736751039156,-500.0,0.00019178,2]
[348721170,1736751039166,-500.0,0.00019178,2]
[348721172,1736751039175,-500.0,0.00019178,2]
[348721175,1736751039185,-500.0,0.00019178,2]
[348721177,1736751039195,-500.0,0.00019178,2]
[348721179,1736751039205,-500.0,0.00019178,2]
[348721181,1736751039215,-500.0,0.00019178,2]
[348721183,1736751039224,-500.0,0.00019178,2]
[348721185,1736751039234,-500.0,0.00019178,2]
[348721187,1736751039244,-154.38,0.00019178,2]
[348721189,1736751039254,-280.198,0.00019414,2]
[348721191,1736751039268,-150.0,0.0001944,2]
[348721193,1736751039278,-535.0,0.0001944,2]
[348721195,1736751039287,-2071.0,0.0001944,2]
[348721197,1736751039296,-2315.0,0.0001944,2]
[348721199,1736751039306,-395.0,0.0001944,2]
[348721200,1736751039315,-196.32811884,0.00019451,2]
[348721202,1736751039325,-381.83255828,0.00019451,2]
[348721204,1736751039334,-246.36942961,0.00019451,2]
[348721206,1736751039343,-153.831703,0.00019452,2]
[348721208,1736751039352,-151.0,0.00019452,2]
[348721211,1736751039363,-151.0,0.00019452,2]
[348721213,1736751039372,-151.0,0.00019452,2]
[348721214,1736751039383,-151.0,0.00019452,2]
[348721217,1736751039396,-151.0,0.00019452,2]
[348721219,1736751039406,-151.0,0.00019452,2]
[348721221,1736751039415,-151.0,0.00019452,2]
[348721223,1736751039424,-151.0,0.00019452,2]
[348721225,1736751039434,-156.869956,0.00019452,2]
[348721227,1736751039444,-151.0,0.00019452,2]
[348721229,1736751039453,-213.287207,0.00019452,2]
[348721231,1736751039464,-271.831048,0.00019452,2]
[348721233,1736751039474,-151.0,0.00019452,2]
[348721235,1736751039483,-151.0,0.00019452,2]
[348721237,1736751039492,-151.0,0.00019452,2]
[348721239,1736751039502,-151.0,0.00019452,2]
[348721241,1736751039514,-151.0,0.00019452,2]
[348721243,1736751039523,-156.111549,0.00019452,2]
[348721244,1736751039532,-151.0,0.00019452,2]
[348721247,1736751039542,-151.0,0.00019452,2]
[348721249,1736751039551,-151.0,0.00019452,2]
[348721251,1736751039561,-151.666156,0.00019452,2]
[348721252,1736751039569,-151.0,0.00019452,2]
[348721254,1736751039578,-151.0,0.00019452,2]
[348721256,1736751039587,-151.0,0.00019452,2]
[348721258,1736751039597,-434.048192,0.00019452,2]
[348721260,1736751039606,-434.048192,0.00019452,2]
[348721262,1736751039616,-563.386161,0.00019452,2]
[348721264,1736751039625,-434.048192,0.00019452,2]
[348721266,1736751039634,-563.386161,0.00019452,2]
[348721268,1736751039643,-563.386161,0.00019452,2]
[348721271,1736751039652,-434.048192,0.00019452,2]
[348721273,1736751039661,-434.048192,0.00019452,2]
[348721275,1736751039671,-434.048192,0.00019452,2]
[348721277,1736751039680,-151.0,0.00019452,2]
[348721279,1736751039689,-151.0,0.00019452,2]
[348721281,1736751039698,-151.0,0.00019452,2]
[348721283,1736751039707,-151.0,0.00019452,2]
[348721285,1736751039716,-248.65933,0.00019452,2]
[348721287,1736751039726,-479.124678,0.00019452,2]
[348721289,1736751039735,-479.124678,0.00019452,2]
[348721292,1736751039745,-479.124678,0.00019452,2]
[348721294,1736751039754,-479.124678,0.00019452,2]
[348721296,1736751039766,-479.124678,0.00019452,2]
[348721298,1736751039775,-479.124678,0.00019452,2]
[348721300,1736751039784,-151.0,0.00019452,2]
[348721302,1736751039794,-151.0,0.00019452,2]
[348721305,1736751039804,-151.0,0.00019452,2]
[348721307,1736751039813,-273.342586,0.00019452,2]
[348721309,1736751039822,-177.305374,0.00019452,2]
[348721312,1736751039831,-177.305374,0.00019452,2]
[348721314,1736751039841,-177.305374,0.00019452,2]
[348721317,1736751039851,-177.305374,0.00019452,2]
[348721319,1736751039860,-177.305374,0.00019452,2]
[348721321,1736751039869,-177.305374,0.00019452,2]
[348721323,1736751039878,-151.0,0.00019452,2]
[348721325,1736751039888,-151.0,0.00019452,2]
[348721327,1736751039897,-159.114302,0.00019452,2]
[348721329,1736751039906,-275.302666,0.00019452,2]
[348721331,1736751039915,-275.302666,0.00019452,2]
[348721333,1736751039924,-151.0,0.00019452,2]
[348721335,1736751039933,-151.0,0.00019452,2]
[348721337,1736751039943,-151.0,0.00019452,2]
[348721339,1736751039951,-151.0,0.00019452,2]
[348721341,1736751039961,-151.0,0.00019452,2]
[348721343,1736751039970,-151.0,0.00019452,2]
[348721345,1736751039979,-151.0,0.00019452,2]
[348721347,1736751039989,-191.813239,0.00019452,2]
[348721349,1736751039998,-151.0,0.00019452,2]
[348721352,1736751040008,-151.0,0.00019452,2]
[348721354,1736751040021,-151.0,0.00019452,2]
[348721356,1736751040030,-151.0,0.00019452,2]
[348721358,1736751040039,-151.0,0.00019452,2]
[348721360,1736751040048,-151.0,0.00019452,2]
[348721362,1736751040057,-151.0,0.00019452,2]
[348721364,1736751040066,-151.0,0.00019452,2]
[348721366,1736751040075,-151.0,0.00019452,2]
[348721368,1736751040084,-3229.71,0.00019452,3]
[348721370,1736751040094,-212.856311,0.00019452,2]
[348721372,1736751040104,-151.0,0.00019452,2]
[348721374,1736751040114,-151.0,0.00019452,2]
[348721376,1736751040123,-151.0,0.00019452,2]
[348721378,1736751040132,-1474.54,0.00019452,3]
[348721380,1736751040142,-500.0,0.00019452,3]
[348721382,1736751040152,-500.0,0.00019452,3]
[348721384,1736751040162,-500.0,0.00019452,3]
[348721386,1736751040173,-500.0,0.00019452,3]
[348721388,1736751040183,-212.850086,0.00019452,2]
[348721390,1736751040194,-151.0,0.00019452,2]
[348721392,1736751040205,-151.0,0.00019452,2]
[348721394,1736751040215,-151.0,0.00019452,2]
[348721396,1736751040226,-500.0,0.00019452,3]
[348721398,1736751040236,-151.0,0.00019452,2]
[348721400,1736751040246,-151.0,0.00019452,2]
[348721402,1736751040255,-151.0,0.00019452,2]
[348721404,1736751040267,-151.0,0.00019452,2]
[348721406,1736751040277,-151.0,0.00019452,2]
[348721409,1736751040289,-151.0,0.00019452,2]
[348721411,1736751040299,-356.008,0.00019452,2]
[348721413,1736751040308,-356.008,0.00019452,2]
[348721415,1736751040318,-356.008,0.00019452,2]
[348721417,1736751040328,-356.008,0.00019452,2]
[348721419,1736751040338,-356.008,0.00019452,2]
[348721421,1736751040347,-356.008,0.00019452,2]
[348721423,1736751040357,-151.0,0.00019452,2]
[348721425,1736751040367,-151.0,0.00019452,2]
[348721427,1736751040377,-151.0,0.00019452,2]
[348721429,1736751040386,-581.062338,0.00019452,2]
[348721431,1736751040398,-581.062338,0.00019452,2]
[348721433,1736751040409,-581.062338,0.00019452,2]
[348721435,1736751040419,-581.062338,0.00019452,2]
[348721437,1736751040428,-581.062338,0.00019452,2]
[348721439,1736751040437,-581.062338,0.00019452,2]
[348721441,1736751040448,-151.0,0.00019452,2]
[348721443,1736751040457,-151.0,0.00019452,2]
[348721445,1736751040467,-151.0,0.00019452,2]
[348721447,1736751040479,-500.0,0.00019452,3]
[348721449,1736751040504,-384.681544,0.00019452,2]
[348721451,1736751040522,-384.681544,0.00019452,2]
[348721454,1736751040532,-384.681544,0.00019452,2]
[348721456,1736751040541,-238.688404,0.00019452,2]
[348721458,1736751040551,-238.688404,0.00019452,2]
[348721460,1736751040561,-238.688404,0.00019452,2]
[348721462,1736751040570,-384.681544,0.00019452,2]
[348721464,1736751040579,-4329.11,0.00019452,2]
[348721466,1736751040588,-384.681544,0.00019452,2]
[348721468,1736751040598,-384.681544,0.00019452,2]
[348721470,1736751040608,-238.688404,0.00019452,2]
[348721472,1736751040618,-238.688404,0.00019452,2]
[348721473,1736751040627,-238.688404,0.00019452,2]
[348721476,1736751040637,-500.0,0.00019452,3]
[348721478,1736751040647,-151.0,0.00019452,2]
[348721480,1736751040656,-151.0,0.00019452,2]
[348721482,1736751040666,-151.0,0.00019452,2]
[348721484,1736751040675,-151.0,0.00019452,2]
[348721486,1736751040685,-1437.13,0.00019452,3]
[348721488,1736751040694,-151.0,0.00019452,2]
[348721489,1736751040704,-232.423294,0.00019452,2]
[348721491,1736751040713,-500.0,0.00019452,3]
[348721493,1736751040723,-500.0,0.00019452,3]
[348721495,1736751040732,-500.0,0.00019452,3]
[348721497,1736751040743,-500.0,0.00019452,3]
[348721499,1736751040752,-500.0,0.00019452,3]
[348721501,1736751040763,-468.08849816,0.00019452,3]
[348721503,1736751040773,-500.0,0.00019452,3]
[348721505,1736751040783,-500.0,0.00019452,3]
[348721507,1736751040792,-500.0,0.00019452,3]
[348721509,1736751040801,-500.0,0.00019452,3]
[348721511,1736751040811,-500.0,0.00019452,3]
[348721513,1736751040821,-500.0,0.00019452,3]
[348721515,1736751040831,-826.73,0.00019452,3]
[348721517,1736751040841,-500.0,0.00019452,3]
[348721519,1736751040851,-825.67,0.00019452,3]
[348721521,1736751040860,-160.133786,0.00019452,2]
[348721523,1736751040870,-513.2080948,0.00019452,3]
[348721525,1736751040879,-500.0,0.00019452,3]
[348721527,1736751040889,-500.0,0.00019452,3]
[348721529,1736751040899,-151.0,0.00019452,2]
[348721531,1736751040909,-151.0,0.00019452,2]
[348721533,1736751040920,-151.0,0.00019452,2]
[348721535,1736751040930,-500.0,0.00019452,3]
[348721537,1736751040939,-500.0,0.00019452,3]
[348721539,1736751040948,-151.0,0.00019452,2]
[348721541,1736751040957,-151.0,0.00019452,2]
[348721543,1736751040967,-1013.37,0.00019452,3]
[348721545,1736751040976,-151.0,0.00019452,2]
[348721547,1736751040985,-151.0,0.00019452,2]
[348721549,1736751041000,-151.0,0.00019452,2]
[348721551,1736751041010,-151.0,0.00019452,2]
[348721554,1736751041022,-500.0,0.00019452,3]
[348721555,1736751041031,-151.0,0.00019452,2]
[348721557,1736751041040,-151.0,0.00019452,2]
[348721559,1736751041049,-151.0,0.00019452,2]
[348721560,1736751041058,-500.0,0.00019452,3]
[348721562,1736751041068,-13870.2,0.00019452,3]
[348721564,1736751041077,-646.21,0.00019452,3]
[348721566,1736751041086,-500.0,0.00019452,3]
[348721567,1736751041096,-500.0,0.00019452,3]
[348721569,1736751041106,-1118.35,0.00019452,3]
[348721571,1736751041116,-500.0,0.00019452,3]
[348721573,1736751041125,-2011.51,0.00019452,3]
[348721575,1736751041135,-2254.57,0.00019452,3]
[348721583,1736751041229,-500.0,0.00019452,3]
[348721586,1736751041240,-500.0,0.00019452,3]
[348721587,1736751041249,-332.711293,0.00019452,2]
[348721589,1736751041258,-332.711293,0.00019452,2]
[348721591,1736751041269,-332.711293,0.00019452,2]
[348721593,1736751041279,-371.91458746,0.00019452,3]
[348721595,1736751041289,-332.711293,0.00019452,2]
[348721596,1736751041299,-332.711293,0.00019452,2]
[348721598,1736751041308,-332.711293,0.00019452,2]
[348721600,1736751041318,-500.0,0.00019452,3]
[348721602,1736751041327,-500.0,0.00019452,3]
[348721604,1736751041337,-500.0,0.00019452,3]
[348721605,1736751041346,-500.0,0.000195,2]
[348721607,1736751041356,-600.0,0.000195,2]
[348721609,1736751041366,-365.7892497,0.00019562,2]
[348721611,1736751041375,-434.048192,0.00019626,2]
[348721612,1736751041384,-434.048192,0.00019626,2]
[348721614,1736751041398,-151.0,0.00019626,2]
[348721616,1736751041407,-479.124678,0.00019626,2]
[348721618,1736751041416,-479.124678,0.00019626,2]
[348721619,1736751041426,-151.0,0.00019626,2]
[348721621,1736751041436,-177.305374,0.00019626,2]
[348721623,1736751041445,-177.305374,0.00019626,2]
[348721625,1736751041455,-275.302666,0.00019626,2]
[348721627,1736751041465,-275.302666,0.00019626,2]
[348721628,1736751041475,-151.0,0.00019626,2]
[348721630,1736751041485,-300.030684,0.00019626,2]
[348721632,1736751041494,-151.0,0.00019626,2]
[348721634,1736751041503,-581.062338,0.00019626,2]
[348721635,1736751041512,-581.062338,0.00019626,2]
[348721637,1736751041524,-193.951839,0.00019626,2]
[348721639,1736751041532,-384.681544,0.00019626,2]
[348721641,1736751041541,-384.681544,0.00019626,2]
[348721643,1736751041551,-151.0,0.00019626,2]
[348721644,1736751041561,-2274.35063119,0.00019626,2]
[348721646,1736751041570,-3000.0,0.00019626,2]
[348721648,1736751041579,-500.0,0.00019673,2]
[348721650,1736751041589,-321.22609468,0.00019673,2]
[348721651,1736751041598,-500.0,0.00019673,2]
[348721653,1736751041607,-373.7805341,0.00019673,2]
[348721655,1736751041616,-500.56651287,0.00019673,2]
[348721657,1736751041626,-500.0,0.00019673,2]
[348721659,1736751041635,-163.75587857,0.00019673,2]
[348721661,1736751041644,-505.89911435,0.00019673,2]
[348721663,1736751041653,-505.59383284,0.00019673,2]
[348721664,1736751041663,-156.89252278,0.00019673,2]
[348721666,1736751041672,-151.0,0.00019673,2]
[348721668,1736751041681,-151.0,0.00019673,2]
[348721670,1736751041691,-234.824616,0.00019673,2]
[348721672,1736751041701,-301.8540808,0.00019688,2]
[348721674,1736751041714,-79612.0,0.000197,2]
[348721675,1736751041727,-828.814526,0.000197,2]
[348721677,1736751041736,-151.0,0.000197,2]
[348721679,1736751041746,-151.0,0.000197,2]
[348721681,1736751041755,-151.0,0.000197,2]
[348721683,1736751041767,-151.0,0.000197,2]
[348721685,1736751041775,-151.0,0.000197,2]
[348721687,1736751041785,-151.0,0.000197,2]
[348721689,1736751041794,-434.048192,0.000197,2]
[348721690,1736751041805,-563.386161,0.000197,2]
[348721692,1736751041814,-434.048192,0.000197,2]
[348721694,1736751041823,-151.0,0.000197,2]
[348721696,1736751041833,-479.124678,0.000197,2]
[348721698,1736751041842,-479.124678,0.000197,2]
[348721699,1736751041851,-151.0,0.000197,2]
[348721701,1736751041861,-177.305374,0.000197,2]
[348721703,1736751041870,-177.305374,0.000197,2]
[348721705,1736751041879,-275.302666,0.000197,2]
[348721707,1736751041888,-275.302666,0.000197,2]
[348721709,1736751041898,-151.0,0.000197,2]
[348721710,1736751041907,-151.0,0.000197,2]
[348721712,1736751041917,-151.0,0.000197,2]
[348721714,1736751041926,-176.086113,0.000197,2]
[348721716,1736751041935,-151.0,0.000197,2]
[348721717,1736751041944,-151.0,0.000197,2]
[348721719,1736751041953,-151.0,0.000197,2]
[348721721,1736751041962,-151.0,0.000197,2]
[348721723,1736751041971,-356.008,0.000197,2]
[348721725,1736751041980,-356.008,0.000197,2]
[348721727,1736751041989,-151.0,0.000197,2]
[348721728,1736751041998,-581.062338,0.000197,2]
[348721730,1736751042007,-581.062338,0.000197,2]
[348721732,1736751042020,-384.681544,0.000197,2]
[348721734,1736751042029,-238.688404,0.000197,2]
[348721736,1736751042039,-384.681544,0.000197,2]
[348721738,1736751042051,-238.688404,0.000197,2]
[348721740,1736751042063,-151.0,0.000197,2]
[348721741,1736751042073,-151.0,0.000197,2]
[348721743,1736751042082,-151.0,0.000197,2]
[348721745,1736751042091,-151.0,0.000197,2]
[348721747,1736751042101,-332.711293,0.000197,2]
[348721749,1736751042109,-332.711293,0.000197,2]
[348721751,1736751042119,-1029.97940055,0.00019725,2]
[348721752,1736751042128,-151.0,0.00019726,2]
[348721754,1736751042137,-151.0,0.00019726,2]
[348721756,1736751042147,-828.814526,0.00019726,2]
[348721758,1736751042157,-828.814526,0.00019726,2]
[348721760,1736751042166,-151.0,0.00019726,2]
[348721762,1736751042175,-151.0,0.00019726,2]